fUSD/lending_fUSD_20240915
["ID","MTS","AMOUNT","RATE_DAILY","PERIOD"]
[338247635,1726435842457,-151.0,0.000128,2]
[338247636,1726435842467,-151.0,0.000128,2]
[338247637,1726435842476,-151.0,0.000128,2]
[338247638,1726435842486,-151.0,0.000128,2]
[338247639,1726435842495,-151.0,0.000128,2]
[338247640,1726435842505,-151.0,0.000128,2]
[338247641,1726435842514,-151.0,0.000128,2]
[338247642,1726435842523,-151.0,0.000128,2]
[338247643,1726435842533,-151.0,0.000128,2]
[338247644,1726435842542,-151.0,0.000128,2]
[338247645,1726435842551,-151.0,0.000128,2]
[338247646,1726435842560,-151.0,0.000128,2]
[338247647,1726435842571,-154.587588,0.000128,2]
[338247648,1726435842581,-151.0,0.000128,2]
[338247649,1726435842591,-151.0,0.000128,2]
[338247650,1726435842601,-151.0,0.000128,2]
[338247651,1726435842610,-151.0,0.000128,2]
[338247652,1726435842620,-151.0,0.000128,2]
[338247653,1726435842629,-151.0,0.000128,2]
[338247654,1726435842638,-151.0,0.000128,2]
[338247655,1726435842648,-156.793518,0.000128,2]
[338247656,1726435842657,-2036.87527479,0.000128,2]
[338247657,1726435842668,-151.0,0.000128,2]
[338247658,1726435842677,-198.659337,0.000128,2]
[338247659,1726435842687,-151.0,0.000128,2]
[338247660,1726435842696,-151.0,0.000128,2]
[338247661,1726435842705,-198.659337,0.000128,2]
[338247662,1726435842714,-151.0,0.000128,2]
[338247663,1726435842724,-198.659337,0.000128,2]
[338247664,1726435842733,-151.0,0.000128,2]
[338247665,1726435842743,-198.659337,0.000128,2]
[338247666,1726435842752,-198.659337,0.000128,2]
[338247667,1726435842761,-198.659337,0.000128,2]
[338247668,1726435842770,-198.659337,0.000128,2]
[338247669,1726435842779,-198.659337,0.000128,2]
[338247670,1726435842789,-198.659337,0.000128,2]
[338247671,1726435842798,-67986.28540336,0.000128,2]
[338247673,1726435842807,-198.659337,0.000128,2]
[338247674,1726435842816,-198.659337,0.000128,2]
[338247675,1726435842826,-198.659337,0.000128,2]
[338247676,1726435842836,-198.659337,0.000128,2]
[338247677,1726435842845,-198.659337,0.000128,2]
[338247678,1726435842855,-198.659337,0.000128,2]
[338247679,1726435842863,-198.659337,0.000128,2]
[338247680,1726435842874,-151.0,0.000128,2]
[338247681,1726435842883,-151.0,0.000128,2]
[338247683,1726435842893,-151.0,0.000128,2]
[338247684,1726435842904,-151.0,0.000128,2]
[338247686,1726435842915,-151.0,0.000128,2]
[338247687,1726435842924,-151.0,0.000128,2]
[338247688,1726435842934,-151.0,0.000128,2]
[338247689,1726435842944,-151.0,0.000128,2]
[338247690,1726435842953,-151.0,0.000128,2]
[338247691,1726435842963,-151.0,0.000128,2]
[338247692,1726435842972,-151.0,0.000128,2]
[338247693,1726435842981,-151.0,0.000128,2]
[338247694,1726435842990,-151.0,0.000128,2]
[338247695,1726435843000,-151.0,0.000128,2]
[338247696,1726435843009,-151.0,0.000128,2]
[338247697,1726435843018,-151.0,0.000128,2]
[338247698,1726435843028,-151.0,0.000128,2]
[338247699,1726435843038,-151.0,0.000128,2]
[338247700,1726435843048,-198.035469,0.000128,2]
[338247701,1726435843058,-151.0,0.000128,2]
[338247702,1726435843068,-151.0,0.000128,2]
[338247703,1726435843077,-151.0,0.000128,2]
[338247704,1726435843087,-151.0,0.000128,2]
[338247705,1726435843096,-151.0,0.000128,2]
[338247706,1726435843106,-151.0,0.000128,2]
[338247707,1726435843116,-151.0,0.000128,2]
[338247708,1726435843125,-151.0,0.000128,2]
[338247709,1726435843135,-151.0,0.000128,2]
[338247710,1726435843145,-151.0,0.000128,2]
[338247711,1726435843154,-151.0,0.000128,2]
[338247712,1726435843163,-151.0,0.000128,2]
[338247713,1726435843173,-151.0,0.000128,2]
[338247714,1726435843183,-151.0,0.000128,2]
[338247715,1726435843192,-151.0,0.000128,2]
[338247716,1726435843202,-151.0,0.000128,2]
[338247717,1726435843211,-151.0,0.000128,2]
[338247718,1726435843221,-156.906564,0.000128,2]
[338247719,1726435843231,-151.0,0.000128,2]
[338247720,1726435843241,-151.0,0.000128,2]
[338247721,1726435843251,-151.0,0.000128,2]
[338247722,1726435843260,-184.053695,0.000128,2]
[338247723,1726435843270,-151.0,0.000128,2]
[338247724,1726435843279,-151.0,0.000128,2]
[338247725,1726435843289,-151.0,0.000128,2]
[338247726,1726435843299,-151.0,0.000128,2]
[338247727,1726435843308,-155.694509,0.000128,2]
[338247728,1726435843318,-151.0,0.000128,2]
[338247729,1726435843328,-151.0,0.000128,2]
[338247730,1726435843338,-151.0,0.000128,2]
[338247731,1726435843347,-151.0,0.000128,2]
[338247732,1726435843357,-151.0,0.000128,2]
[338247733,1726435843368,-2020.319575,0.000128,2]
[338247734,1726435843378,-151.0,0.000128,2]
[338247735,1726435843388,-2020.319575,0.000128,2]
[338247736,1726435843398,-151.0,0.000128,2]
[338247737,1726435843408,-2020.319575,0.000128,2]
[338247739,1726435843417,-2020.319575,0.000128,2]
[338247741,1726435843427,-2020.319575,0.000128,2]
[338247743,1726435843437,-2020.319575,0.000128,2]
[338247745,1726435843446,-151.0,0.000128,2]
[338247746,1726435843456,-2020.319575,0.000128,2]
[338247747,1726435843466,-151.0,0.000128,2]
[338247748,1726435843476,-2020.319575,0.000128,2]
[338247749,1726435843487,-151.0,0.000128,2]
[338247750,1726435843497,-2020.319575,0.000128,2]
[338247751,1726435843506,-151.0,0.000128,2]
[338247752,1726435843516,-2020.319575,0.000128,2]
[338247753,1726435843526,-151.0,0.000128,2]
[338247754,1726435843536,-236.206372,0.000128,2]
[338247755,1726435843546,-2020.319575,0.000128,2]
[338247756,1726435843556,-2020.319575,0.000128,2]
[338247757,1726435843566,-2020.319575,0.000128,2]
[338247758,1726435843580,-2020.319575,0.000128,2]
[338247759,1726435843590,-2020.319575,0.000128,2]
[338247760,1726435843600,-2020.319575,0.000128,2]
[338247761,1726435843611,-151.0,0.000128,2]
[338247762,1726435843622,-2020.319575,0.000128,2]
[338247763,1726435843632,-175.810098,0.000128,2]
[338247764,1726435843643,-2020.319575,0.000128,2]
[338247765,1726435843654,-151.0,0.000128,2]
[338247766,1726435843664,-151.0,0.000128,2]
[338247767,1726435843673,-151.0,0.000128,2]
[338247768,1726435843683,-151.0,0.000128,2]
[338247769,1726435843693,-151.0,0.000128,2]
[338247770,1726435843704,-151.0,0.000128,2]
[338247771,1726435843714,-151.0,0.000128,2]
[338247772,1726435843724,-151.0,0.000128,2]
[338247773,1726435843734,-151.0,0.000128,2]
[338247774,1726435843744,-151.0,0.000128,2]
[338247775,1726435843753,-151.0,0.000128,2]
[338247776,1726435843764,-151.0,0.000128,2]
[338247777,1726435843774,-153.149231,0.000128,2]
[338247778,1726435843784,-151.0,0.000128,2]
[338247779,1726435843794,-151.0,0.000128,2]
[338247780,1726435843804,-151.342173,0.000128,2]
[338247781,1726435843813,-258.258694,0.000128,2]
[338247782,1726435843822,-151.0,0.000128,2]
[338247783,1726435843833,-151.0,0.000128,2]
[338247784,1726435843843,-151.0,0.000128,2]
[338247785,1726435843853,-151.0,0.000128,2]
[338247786,1726435843863,-151.0,0.000128,2]
[338247787,1726435843874,-151.0,0.000128,2]
[338247788,1726435843884,-151.0,0.000128,2]
[338247789,1726435843894,-151.0,0.000128,2]
[338247790,1726435843904,-151.0,0.000128,2]
[338247791,1726435843914,-151.0,0.000128,2]
[338247792,1726435843924,-151.0,0.000128,2]
[338247793,1726435843934,-151.0,0.000128,2]
[338247794,1726435843943,-151.0,0.000128,2]
[338247795,1726435843954,-151.0,0.000128,2]
[338247796,1726435843963,-151.0,0.000128,2]
[338247797,1726435843972,-151.0,0.000128,2]
[338247798,1726435843982,-290.465355,0.000128,2]
[338247799,1726435843991,-151.0,0.000128,2]
[338247800,1726435844001,-151.0,0.000128,2]
[338247801,1726435844011,-151.0,0.000128,2]
[338247802,1726435844020,-151.0,0.000128,2]
[338247803,1726435844029,-151.0,0.000128,2]
[338247804,1726435844039,-151.0,0.000128,2]
[338247805,1726435844049,-151.0,0.000128,2]
[338247806,1726435844058,-169.509939,0.000128,2]
[338247807,1726435844068,-256.763157,0.000128,2]
[338247808,1726435844078,-189.836438,0.000128,2]
[338247809,1726435844088,-189.836438,0.000128,2]
[338247810,1726435844098,-189.836438,0.000128,2]
[338247811,1726435844109,-189.836438,0.000128,2]
[338247812,1726435844119,-189.836438,0.000128,2]
[338247813,1726435844128,-189.836438,0.000128,2]
[338247814,1726435844139,-189.836438,0.000128,2]
[338247815,1726435844149,-189.836438,0.000128,2]
[338247816,1726435844159,-944.143466,0.000128,2]
[338247817,1726435844170,-189.836438,0.000128,2]
[338247818,1726435844179,-944.143466,0.000128,2]
[338247819,1726435844189,-189.836438,0.000128,2]
[338247820,1726435844200,-944.143466,0.000128,2]
[338247821,1726435844209,-944.143466,0.000128,2]
[338247822,1726435844219,-518.53607,0.000128,2]
[338247823,1726435844228,-189.836438,0.000128,2]
[338247824,1726435844238,-944.143466,0.000128,2]
[338247825,1726435844248,-944.143466,0.000128,2]
[338247826,1726435844257,-189.836438,0.000128,2]
[338247827,1726435844267,-944.143466,0.000128,2]
[338247828,1726435844276,-189.836438,0.000128,2]
[338247829,1726435844349,-189.836438,0.000128,2]
[338247830,1726435844359,-944.143466,0.000128,2]
[338247831,1726435844369,-189.836438,0.000128,2]
[338247832,1726435844388,-944.143466,0.000128,2]
[338247833,1726435844397,-189.836438,0.000128,2]
[338247834,1726435844407,-944.143466,0.000128,2]
[338247835,1726435844416,-944.143466,0.000128,2]
[338247836,1726435844425,-944.143466,0.000128,2]
[338247837,1726435844434,-944.143466,0.000128,2]
[338247838,1726435844443,-944.143466,0.000128,2]
[338247839,1726435844453,-944.143466,0.000128,2]
[338247840,1726435844462,-944.143466,0.000128,2]
[338247841,1726435844472,-944.143466,0.000128,2]
[338247842,1726435844482,-944.143466,0.000128,2]
[338247843,1726435844491,-151.0,0.000128,2]
[338247844,1726435844500,-151.0,0.000128,2]
[338247845,1726435844509,-151.0,0.000128,2]
[338247846,1726435844519,-151.0,0.000128,2]
[338247847,1726435844528,-151.0,0.000128,2]
[338247848,1726435844537,-151.0,0.000128,2]
[338247849,1726435844546,-151.0,0.000128,2]
[338247850,1726435844555,-151.0,0.000128,2]
[338247851,1726435844565,-151.0,0.000128,2]
[338247852,1726435844576,-151.0,0.000128,2]
[338247853,1726435844586,-151.0,0.000128,2]
[338247854,1726435844595,-5594.95,0.000128,2]
[338247855,1726435844604,-155.57775669,0.000128,2]
[338247856,1726435844614,-151.0,0.000128,2]
[338247857,1726435844626,-151.0,0.000128,2]
[338247858,1726435844635,-151.0,0.000128,2]
[338247859,1726435844644,-151.0,0.000128,2]
[338247860,1726435844654,-151.0,0.000128,2]
[338247861,1726435844664,-151.0,0.000128,2]
[338247862,1726435844673,-151.0,0.000128,2]
[338247863,1726435844683,-151.0,0.000128,2]
[338247864,1726435844692,-151.0,0.000128,2]
[338247865,1726435844701,-151.0,0.000128,2]
[338247866,1726435844711,-151.0,0.000128,2]
[338247867,1726435844720,-151.0,0.000128,2]
[338247868,1726435844729,-151.0,0.000128,2]
[338247869,1726435844738,-151.0,0.000128,2]
[338247870,1726435844747,-151.0,0.000128,2]
[338247871,1726435844757,-151.0,0.000128,2]
[338247872,1726435844766,-151.0,0.000128,2]
[338247873,1726435844775,-151.0,0.000128,2]
[338247874,1726435844784,-151.0,0.000128,2]
[338247875,1726435844793,-151.0,0.000128,2]
[338247876,1726435844803,-294.910096,0.000128,2]
[338247877,1726435844812,-151.0,0.000128,2]
[338247878,1726435844821,-151.0,0.000128,2]
[338247879,1726435844830,-151.0,0.000128,2]
[338247880,1726435844839,-151.0,0.000128,2]
[338247881,1726435844848,-151.0,0.000128,2]
[338247882,1726435844858,-151.0,0.000128,2]
[338247883,1726435844867,-151.0,0.000128,2]
[338247884,1726435844879,-151.0,0.000128,2]
[338247885,1726435844888,-151.0,0.0001285,2]
[338247886,1726435844898,-151.0,0.0001285,2]
[338247887,1726435844907,-151.0,0.0001285,2]
[338247888,1726435844916,-151.0,0.0001285,2]
[338247889,1726435844926,-326.127566,0.0001285,2]
[338247890,1726435844935,-326.127566,0.0001285,2]
[338247891,1726435844943,-151.0,0.0001285,2]
[338247892,1726435844952,-151.0,0.0001285,2]
[338247893,1726435844962,-151.0,0.0001285,2]
[338247894,1726435844971,-198.659337,0.0001285,2]
[338247895,1726435844980,-198.659337,0.0001285,2]
[338247896,1726435844990,-151.0,0.0001285,2]
[338247897,1726435844999,-151.0,0.0001285,2]
[338247898,1726435845008,-151.0,0.0001285,2]
[338247899,1726435845018,-2020.319575,0.0001285,2]
[338247900,1726435845027,-2020.319572,0.0001285,2]
[338247901,1726435845036,-151.0,0.0001285,2]
[338247902,1726435845045,-189.836438,0.0001285,2]
[338247903,1726435845055,-944.143466,0.0001285,2]
[338247904,1726435845064,-189.836438,0.0001285,2]
[338247905,1726435845073,-944.143476,0.0001285,2]
[338247906,1726435845082,-151.0,0.0001285,2]
[338247907,1726435845091,-499.99,0.0001287,2]
[338247908,1726435845100,-3572.08712496,0.0001287,2]
[338247909,1726435845109,-928.651,0.000129,2]
[338247910,1726435845121,-160.778,0.000129,2]
[338247911,1726435845130,-151.0,0.000129,2]
[338247912,1726435845140,-220.63838,0.000129,2]
[338247913,1726435845149,-151.0,0.000129,2]
[338247914,1726435845158,-235.453987,0.000129,2]
[338247915,1726435845167,-235.453987,0.000129,2]
[338247916,1726435845177,-216.987353,0.000129,2]
[338247917,1726435845186,-216.987353,0.000129,2]
[338247918,1726435845195,-151.0,0.0001291,2]
[338247919,1726435845204,-151.0,0.0001291,2]
[338247920,1726435845213,-151.0,0.0001291,2]
[338247921,1726435845222,-151.0,0.00012922,2]
[338247922,1726435845231,-151.0,0.00012922,2]
[338247923,1726435845240,-151.0,0.00012922,2]
[338247924,1726435845250,-151.0,0.00012922,2]
[338247925,1726435845259,-151.0,0.00012922,2]
[338247926,1726435845268,-151.0,0.00012922,2]
[338247927,1726435845277,-151.0,0.00012922,2]
[338247928,1726435845286,-151.0,0.00012922,2]
[338247929,1726435845295,-151.0,0.00012922,2]
[338247930,1726435845305,-151.0,0.00012922,2]
[338247931,1726435845314,-151.0,0.00012922,2]
[338247932,1726435845324,-151.0,0.00012922,2]
[338247933,1726435845333,-151.0,0.00012922,2]
[338247934,1726435845342,-151.0,0.00012922,2]
[338247935,1726435845351,-151.0,0.00012922,2]
[338247936,1726435845360,-151.0,0.00012922,2]
[338247937,1726435845371,-151.0,0.00012922,2]
[338247938,1726435845380,-151.0,0.00012922,2]
[338247939,1726435845389,-151.0,0.00012922,2]
[338247940,1726435845399,-151.0,0.00012922,2]
[338247941,1726435845408,-151.0,0.00012922,2]
[338247942,1726435845417,-151.0,0.00012922,2]
[338247943,1726435845427,-239.796872,0.00012922,2]
[338247944,1726435845436,-151.0,0.00012922,2]
[338247945,1726435845445,-151.0,0.00012922,2]
[338247946,1726435845455,-151.0,0.00012922,2]
[338247947,1726435845464,-151.0,0.00012922,2]
[338247948,1726435845473,-151.0,0.00012922,2]
[338247949,1726435845482,-151.0,0.00012922,2]
[338247950,1726435845491,-151.0,0.00012922,2]
[338247951,1726435845499,-151.0,0.00012922,2]
[338247952,1726435845511,-151.0,0.00012922,2]
[338247953,1726435845519,-165.918967,0.00012922,2]
[338247954,1726435845529,-151.0,0.00012922,2]
[338247955,1726435845538,-151.0,0.00012922,2]
[338247956,1726435845547,-187.335276,0.00012922,2]
[338247957,1726435845555,-680.479048,0.00012922,2]
[338247958,1726435845565,-680.479048,0.00012922,2]
[338247959,1726435845577,-680.479048,0.00012922,2]
[338247960,1726435845586,-680.479048,0.00012922,2]
[338247961,1726435845595,-680.479048,0.00012922,2]
[338247962,1726435845604,-680.479048,0.00012922,2]
[338247963,1726435845614,-151.0,0.00012922,2]
[338247964,1726435845624,-151.0,0.00012922,2]
[338247965,1726435845633,-151.0,0.00012922,2]
[338247966,1726435845644,-151.0,0.00012922,2]
[338247967,1726435845654,-151.0,0.00012922,2]
[338247968,1726435845664,-277.60458,0.00012922,2]
[338247969,1726435845673,-235.453987,0.00012922,2]
[338247970,1726435845682,-235.453987,0.00012922,2]
[338247971,1726435845691,-235.453987,0.00012922,2]
[338247972,1726435845701,-151.0,0.00012922,2]
[338247973,1726435845710,-151.0,0.00012922,2]
[338247974,1726435845719,-151.0,0.00012922,2]
[338247975,1726435845729,-235.453987,0.00012922,2]
[338247976,1726435845739,-235.453987,0.00012922,2]
[338247977,1726435845748,-235.453987,0.00012922,2]
[338247978,1726435845757,-216.987353,0.00012922,2]
[338247979,1726435845767,-216.987353,0.00012922,2]
[338247980,1726435845776,-216.987353,0.00012922,2]
[338247981,1726435845786,-216.987353,0.00012922,2]
[338247982,1726435845795,-216.987353,0.00012922,2]
[338247983,1726435845804,-216.987349,0.00012922,2]
[338247984,1726435845813,-1568.961405,0.00012922,2]
[338247985,1726435845823,-1568.961405,0.00012922,2]
[338247986,1726435845832,-1568.961405,0.00012922,2]
[338247987,1726435845842,-1568.961405,0.00012922,2]
[338247988,1726435845865,-1568.961405,0.00012922,2]
[338247989,1726435845875,-1568.961399,0.00012922,2]
[338247990,1726435845885,-249.412591,0.00012922,2]
[338247991,1726435845894,-249.412591,0.00012922,2]
[338247992,1726435845903,-249.412591,0.00012922,2]
[338247993,1726435845913,-249.412591,0.00012922,2]
[338247994,1726435845923,-249.412591,0.00012922,2]
[338247995,1726435845932,-249.4126,0.00012922,2]
[338247996,1726435845942,-186.59754,0.00012922,2]
[338247997,1726435845952,-186.59754,0.00012922,2]
[338247998,1726435845962,-186.59754,0.00012922,2]
[338247999,1726435845971,-186.59754,0.00012922,2]
[338248000,1726435845980,-186.59754,0.00012922,2]
[338248001,1726435845990,-186.59754,0.00012922,2]
[338248002,1726435845999,-162.26563,0.00012922,2]
[338248003,1726435846008,-162.26563,0.00012922,2]
[338248004,1726435846017,-162.26563,0.00012922,2]
[338248005,1726435846027,-162.26563,0.00012922,2]
[338248006,1726435846037,-162.26563,0.00012922,2]
[338248007,1726435846047,-162.265629,0.00012922,2]
[338248008,1726435846056,-151.0,0.00012922,2]
[338248009,1726435846066,-151.0,0.00012922,2]
[338248010,1726435846075,-151.0,0.00012922,2]
[338248011,1726435846085,-151.0,0.00012922,2]
[338248012,1726435846095,-151.0,0.00012922,2]
[338248013,1726435846104,-151.0,0.00012922,2]
[338248014,1726435846114,-151.0,0.00012922,2]
[338248015,1726435846125,-151.0,0.00012922,2]
[338248016,1726435846134,-151.0,0.00012922,2]
[338248017,1726435846144,-151.0,0.00012922,2]
[338248018,1726435846153,-326.127566,0.00012922,2]
[338248019,1726435846163,-326.127566,0.00012922,2]
[338248020,1726435846174,-220.2369,0.00012922,2]
[338248021,1726435846183,-151.0,0.00012922,2]
[338248022,1726435846193,-151.0,0.00012922,2]
[338248023,1726435846202,-198.659337,0.00012922,2]
[338248024,1726435846213,-198.659333,0.00012922,2]
[338248025,1726435846222,-151.0,0.00012922,2]
[338248026,1726435846231,-151.0,0.00012922,2]
[338248027,1726435846241,-151.0,0.00012922,2]
[338248028,1726435846250,-189.836438,0.00012922,2]
[338248029,1726435846261,-189.836433,0.00012922,2]
[338248030,1726435846271,-212.0,0.0001293,2]
[338248031,1726435846280,-156.35652142,0.00012973,2]
[338248032,1726435846291,-179.9448102,0.00012973,2]
[338248034,1726435846305,-332.66739426,0.00012973,2]
[338248036,1726435846315,-500.0,0.00012973,2]
[338248038,1726435846325,-500.0,0.00012973,2]
[338248040,1726435846335,-239.49742193,0.00012973,2]
[338248042,1726435846344,-500.0,0.00012973,2]
[338248044,1726435846354,-500.0,0.00012973,2]
[338248046,1726435846364,-500.0,0.00012973,2]
[338248048,1726435846375,-151.0,0.00012973,2]
[338248049,1726435846386,-151.0,0.00012973,2]
[338248050,1726435846397,-151.0,0.00012973,2]
[338248051,1726435846408,-151.0,0.00012973,2]
[338248052,1726435846418,-680.479048,0.00012973,2]
[338248053,1726435846429,-680.479048,0.00012973,2]
[338248054,1726435846439,-151.436314,0.00012973,2]
[338248055,1726435846450,-151.0,0.00012999,2]
[338248056,1726435846461,-151.0,0.00012999,2]
[338248057,1726435846472,-151.0,0.00012999,2]
[338248058,1726435846482,-151.0,0.00012999,2]
[338248059,1726435846493,-680.479048,0.00012999,2]
[338248060,1726435846504,-680.479052,0.00012999,2]
[338248061,1726435846515,-513.1176671,0.00012999,2]
[338248062,1726435846526,-193.70639457,0.00012999,2]
[338248063,1726435846536,-887718.47170912,0.00013,2]
[338248064,1726435846943,-598.75373411,0.00013,2]
[338248065,1726435846956,-270.9400001,0.00013,2]
[338248066,1726435846974,-5744.72923051,0.00013,2]
[338248067,1726435847149,-0.03823308,0.00013,2]
[338248068,1726435847162,-600.48003201,0.00013,2]
[338248069,1726435847175,-352.98958945,0.00013,2]
[338248070,1726435847189,-119456.2257432,0.00013,2]
[338248071,1726435847201,-907.08348551,0.00013,2]
[338248072,1726435847214,-7203.07150963,0.00013,2]
[338248073,1726435847226,-5921.71006796,0.00013,2]
[338248074,1726435847239,-364.48885362,0.00013,2]
[338248075,1726435847251,-819.45729106,0.00013,2]
[338248076,1726435847263,-483.49410376,0.00013,2]
[338248077,1726435847275,-284.0,0.00013,2]
[338248078,1726435847287,-6002.69289367,0.00013,2]
[338248079,1726435847299,-1125.95213341,0.00013,2]
[338248080,1726435847413,250.0,0.00012228,2]
[338248081,1726435847560,-151.0,0.000128,2]
[338248082,1726435847574,-151.0,0.000128,2]
[338248083,1726435847585,-151.0,0.000128,2]
[338248084,1726435847594,-11896.94436848,0.00013,2]
[338248085,1726435847607,-1381.28,0.00013,2]
[338248086,1726435847621,-470.52198766,0.00013,2]
[338248087,1726435847634,-2485.4527614,0.00013,2]
[338248088,1726435847647,-655.68897191,0.00013,2]
[338248089,1726435847661,-5693.25,0.00013,2]
[338248090,1726435847673,-8292.31930921,0.00013,2]
[338248091,1726435848404,-1201.1368108,0.00013,2]
[338248092,1726435848416,-711.66079676,0.00013,2]
[338248093,1726435848428,-111024.86314563,0.00013,2]
[338248094,1726435848440,-3953.81927455,0.00013,2]
[338248095,1726435849035,-3899.62092635,0.00013,2]
[338248096,1726435849047,-5360.8,0.00013,2]
[338248097,1726435849059,-83582.66587905,0.00013,2]
[338248098,1726435849071,-30034.30232018,0.00013,2]
[338248099,1726435849086,-6098.89756461,0.00013,2]
[338248100,1726435849098,-5917.9735355,0.00013,2]
[338248101,1726435849114,-3888.80813399,0.00013,2]
[338248102,1726435897651,1780.0866,0.000126,2]
[338248103,1726435916103,170.65,0.00012602,2]
[338248104,1726436039192,462.35,0.00012414,2]
[338248105,1726436080665,200.0,0.00012447,2]
[338248106,1726436200047,23890.0,0.00012501,2]
[338248107,1726436236011,173.92,0.00012502,2]
[338248108,1726436256948,285.05,0.00010585,2]
[338248109,1726436362055,154.94,0.00010959,2]
[338248110,1726436408660,250.0,0.00012225,2]
[338248111,1726436541610,630.12,0.00012226,2]
[338248112,1726436762429,373.22,0.00012185,2]
[338248113,1726436842529,285.8,0.00010254,2]
[338248114,1726436842726,285.8,0.00012517,2]
[338248115,1726436956682,163.78,0.00010959,2]
[338248120,1726437032184,-209.59593,0.0001287,2]
[338248121,1726437032198,-150.0,0.00012899,2]
[338248122,1726437032208,-300.0,0.00012899,2]
[338248123,1726437032219,-157.85905439,0.000129,2]
[338248124,1726437032228,-444.84097492,0.000129,2]
[338248125,1726437032352,-434.05102508,0.000129,2]
[338248126,1726437032362,-178.914,0.000129,2]
[338248127,1726437032371,-174.70793814,0.000129,2]
[338248128,1726437032380,-150.14448513,0.000129,2]
[338248129,1726437032390,-215.4172838,0.000129,2]
[338248130,1726437032399,-322.37532971,0.000129,2]
[338248131,1726437032408,-2584.77793042,0.000129,2]
[338248132,1726437032418,-210.32303548,0.00012914,2]
[338248133,1726437032427,-242.70455745,0.00012914,2]
[338248134,1726437032437,-1917.4361615,0.0001299,2]
[338248135,1726437032476,-825.40068476,0.0001299,2]
[338248136,1726437032487,-600.0,0.0001299,2]
[338248137,1726437032503,-784.65653678,0.0001299,2]
[338248138,1726437032518,-2933.40559046,0.0001299,2]
[338248142,1726437038373,-544.01346895,0.0001299,2]
[338248143,1726437038390,-697.22222227,0.0001299,2]
[338248144,1726437038401,-574.98736815,0.0001299,2]
[338248145,1726437038421,-599.2800009,0.0001299,2]
[338248146,1726437038433,-996.46810328,0.0001299,2]
[338248147,1726437038443,-151.61,0.0001299,2]
[338248148,1726437038452,-151.61,0.0001299,2]
[338248149,1726437038462,-151.61,0.0001299,2]
[338248150,1726437038471,-4058.76288111,0.00012996,2]
[338248151,1726437038483,-328.07179498,0.00012996,2]
[338248152,1726437038494,-541.90799385,0.00012996,2]
[338248153,1726437038517,-301.59733006,0.00012996,2]
[338248154,1726437038527,-1206.97390445,0.00012996,2]
[338248155,1726437038543,-625.73721625,0.00012996,2]
[338248156,1726437038553,-8930.2311469,0.00012996,2]